bitfinex-derivatives/quotes_ETHF0:USTF0_20251012
["timestamp","ask_amount","ask_price","bid_price","bid_amount"]
[1760281552382,3.3179,4010.5,4009.6,0.45112169]
[1760281552686,3.2078,4010.2,4009.9,0.44874]
[1760281552887,3.2078,4010.2,4009.6,0.00235169]
[1760281552888,3.3179,4010.1,4009.6,0.00235169]
[1760281553184,3.29056873,4010.1,4010.0,0.44873]
[1760281553386,3.29056873,4011.0,4009.6,0.00235169]
[1760281553387,2.88061206,4010.0,4009.9,0.44874]
[1760281553577,1.46125206,4010.0,4009.9,6.91014]
[1760281553783,3.32024923,4011.1,4011.0,0.44862]
[1760281554091,6.05147337,4011.1,4011.0,0.44862]
[1760281554385,3.2078,4011.2,4010.7,0.44865]
[1760281554787,5.97613456,4011.1,4010.9,0.44863]
[1760281554988,3.2078,4011.7,4011.6,0.44855]
[1760281555188,0.22,4013.3,4013.2,0.44837]
[1760281555583,6.29307665,4013.3,4013.2,0.44837]
[1760281555885,0.22,4013.3,4013.0,0.44839]
[1760281556086,0.22,4013.3,4013.2,0.44838]
[1760281556282,3.5379,4013.3,4013.1,3.2078]
[1760281556484,3.3179,4013.2,4013.1,3.2078]
[1760281556686,2.83729206,4013.3,4013.1,3.21032473]
[1760281556984,7.65e-06,4013.3,4013.2,3.70198]
[1760281557183,3.2078,4015.9,4013.3,11.20921]
[1760281557384,2.5909,4016.4,4015.4,3.2078]
[1760281557684,10.494,4017.8,4015.4,3.2078]
[1760281557685,3.3179,4017.7,4016.9,0.44796]
[1760281557885,3.3179,4017.4,4016.5,3.2078]
[1760281558087,3.2078,4016.7,4015.8,3.2078]
[1760281558293,3.3179,4016.6,4015.8,3.05051709]
[1760281558487,5.9980945,4016.6,4015.8,3.05051709]
[1760281558683,3.3179,4016.5,4016.3,3.2078]
[1760281558885,3.3179,4016.6,4016.3,3.1988617]
[1760281559081,3.3179,4016.6,4015.8,0.00286913]
[1760281559082,3.3179,4016.4,4015.8,3.21066913]
[1760281559282,3.3179,4016.4,4014.6,0.44822]
[1760281559283,3.3179,4015.9,4013.8,3.2078]
[1760281559491,3.3179,4015.0,4013.9,0.4483]
[1760281559885,3.2078,4014.1,4013.2,3.2078]
[1760281560189,3.2078,4014.1,4012.5,3.70205]
[1760281560392,3.2078,4014.1,4012.4,3.2078]
[1760281560393,3.2078,4013.5,4012.4,3.2078]
[1760281560587,0.00315989,4013.5,4013.3,0.44836]
[1760281560782,0.00315989,4013.5,4013.3,3.70196]
[1760281561091,9.89e-06,4013.5,4013.4,3.2536]
[1760281561290,2.65843423,4013.4,4012.5,3.2536]
[1760281561491,1.41343423,4013.4,4013.3,3.2078]
[1760281561693,9.89e-06,4013.5,4013.2,3.2536]
[1760281561902,9.89e-06,4013.5,4013.1,3.2078]
[1760281562195,3.3179,4013.3,4012.4,0.00184774]
[1760281562490,2.71420746,4013.4,4010.0,0.44873]
[1760281562491,0.4485,4012.2,4010.0,0.44873]
[1760281562690,0.4485,4012.2,4009.4,3.2078]
[1760281562691,3.2078,4012.6,4010.6,3.5016]
[1760281562892,9.18309288,4012.1,4011.2,3.2078]
[1760281563083,9.18309288,4012.1,4009.2,1.3117]
[1760281563084,3.26925334,4012.1,4012.0,3.95011]
[1760281563289,3.4439,4012.9,4012.3,0.44848]
[1760281563485,6.14993954,4012.1,4012.0,0.0029418]
[1760281563700,43.50603954,4012.1,4012.0,0.0029418]
[1760281563992,2.70603954,4013.0,4012.8,0.44842]
[1760281564197,6.6517,4013.6,4012.0,3.2107418]
[1760281564402,2.887899,4012.2,4012.0,0.0029418]
[1760281564689,4.1448,4012.4,4010.0,3.2078]
[1760281564889,3.2078,4010.6,4009.3,3.5016]
[1760281565095,6.6517,4011.5,4010.0,0.44873]
[1760281565287,3.4439,4010.9,4010.0,0.44874]
[1760281565488,5.89922085,4011.4,4011.2,0.44859]
[1760281565687,3.4439,4011.4,4010.6,0.44866]
[1760281565887,3.2078,4010.7,4010.5,0.44867]
[1760281566092,2.59843796,4011.3,4010.6,3.2078]
[1760281566288,0.00239147,4011.4,4011.1,3.65641]
[1760281566591,0.00239147,4011.4,4011.3,3.95019]
[1760281566791,0.00239147,4011.4,4011.1,3.2078]
[1760281566792,3.4439,4011.3,4011.1,3.2078]
[1760281566999,3.4439,4011.2,4010.4,3.2078]
[1760281567194,3.4439,4011.3,4011.1,3.6564]
[1760281567398,6.6517,4013.3,4011.8,11.21345]
[1760281567692,3.2078,4015.3,4013.8,11.20776]
[1760281567994,3.2078,4015.8,4014.8,3.2078]
[1760281568196,2.71909066,4015.4,4015.2,0.44815]
[1760281568392,3.2078,4016.2,4014.8,3.2078]
[1760281568693,3.2078,4016.2,4012.5,11.21148]
[1760281568694,0.44824,4014.5,4012.6,0.44844]
[1760281568892,5.92620608,4015.4,4012.3,3.5016]
[1760281568893,3.2078,4014.1,4012.3,3.5016]
[1760281569100,3.2078,4013.5,4012.3,0.44848]
[1760281569285,3.2078,4013.5,4011.4,14.71624]
[1760281569286,3.2078,4012.9,4011.6,0.44856]
[1760281569489,3.2078,4012.4,4011.6,3.2078]
[1760281569688,3.2078,4012.4,4012.1,0.4485]
[1760281569689,0.00234454,4012.4,4012.1,0.4485]
[1760281569886,0.00234454,4012.4,4011.8,3.5016]
[1760281570096,0.00234454,4012.4,4012.3,0.44848]
[1760281570290,1.9523,4014.0,4013.0,0.4484]
[1760281570490,3.2078,4014.1,4012.2,0.44849]
[1760281570491,3.2078,4013.1,4012.2,0.44849]
[1760281570690,3.2078,4013.0,4012.2,0.44849]
[1760281570899,3.2078,4013.0,4012.9,3.95001]
[1760281570900,1.78789693,4013.0,4012.9,3.95001]
[1760281571088,10.463,4016.1,4012.6,3.2078]
[1760281571089,5.1601,4014.3,4013.3,0.44837]
[1760281571291,5.1601,4014.3,4012.6,3.2078]
[1760281571292,1.95437546,4014.3,4013.0,11.21018]
[1760281571491,0.00207546,4014.3,4014.2,3.94987]
[1760281571900,1.05066796,4014.3,4013.9,0.4483]
[1760281572095,1.05066796,4014.3,4014.2,7.15767]
[1760281572096,0.00207546,4014.3,4014.2,7.15767]
[1760281572398,0.00207546,4014.3,4014.2,3.65607]
[1760281572699,0.00207546,4014.3,4013.7,3.2078]
[1760281572995,0.00207546,4014.3,4014.2,0.44827]
[1760281573196,0.00207546,4014.3,4014.2,7.15767]
[1760281573592,5.88462424,4014.3,4013.6,3.5016]
[1760281573897,0.00207546,4014.3,4013.3,3.2078]
[1760281574198,5.97269792,4014.2,4013.0,3.2078]
[1760281574403,0.00207546,4014.3,4014.2,3.94987]
[1760281575190,0.00207546,4014.3,4014.2,3.5016]
[1760281575699,0.44803,4016.4,4015.3,0.44814]
[1760281575997,2.86056359,4015.8,4015.3,3.2078]
[1760281576204,2.86056359,4015.8,4015.4,3.94973]
[1760281576390,3.2078,4016.6,4015.4,3.5016]
[1760281576596,0.0023207,4016.6,4016.1,0.44804]
[1760281576894,0.44806,4016.1,4015.9,3.2078]
[1760281577089,0.44806,4016.1,4015.4,0.00222367]
[1760281577090,1.9543,4015.7,4015.4,0.00222367]
[1760281577291,0.0023207,4016.6,4014.5,0.44823]
[1760281577292,2.88307436,4016.0,4015.6,3.2078]
[1760281577599,2.88307436,4016.4,4015.7,1.3752]
[1760281577788,5.1621,4018.7,4017.5,3.5016]
[1760281577989,3.2078,4017.6,4016.6,0.448]
[1760281578295,3.2078,4017.3,4016.4,0.44802]
[1760281578490,1.11942,4018.7,4015.7,3.5016]
[1760281578491,3.4439,4017.2,4016.8,3.2078]
[1760281578793,3.4439,4017.0,4016.8,0.00276611]
[1760281579200,3.4439,4017.0,4015.7,3.2078]
[1760281579201,9.26030849,4016.9,4015.7,3.2078]
[1760281579403,2.60860849,4016.9,4016.7,0.44798]
[1760281579598,0.00221026,4017.2,4016.9,0.44795]
[1760281579806,2.81172327,4017.1,4016.5,0.448]
[1760281580104,3.4439,4017.0,4016.5,0.00204719]
[1760281580300,3.4439,4017.0,4014.7,3.2078]
[1760281580301,3.4439,4016.5,4014.7,3.2078]
[1760281580499,3.4439,4015.4,4014.7,3.2078]
[1760281580694,3.2078,4015.5,4015.3,0.44814]
[1760281580890,0.00221026,4017.2,4015.3,0.44814]
[1760281580891,0.00221026,4017.2,4016.3,3.1769]
[1760281581197,3.4439,4017.7,4015.7,11.20254]
[1760281581198,0.01923389,4017.8,4017.7,3.1769]
[1760281581495,0.01923389,4017.8,4017.7,3.2078]
[1760281581699,3.4439,4017.7,4017.5,0.44789]
[1760281581898,6.23419292,4017.8,4017.7,0.44788]
[1760281582093,2.77105903,4017.6,4017.3,0.44791]
[1760281582290,0.02109134,4017.8,4017.3,0.44791]
[1760281582291,6.6517,4017.4,4017.3,0.00193975]
[1760281582493,3.4439,4017.1,4015.5,3.2078]
[1760281582794,0.44793,4017.2,4015.7,0.44809]
[1760281582795,3.2078,4016.4,4015.7,0.44809]
[1760281582995,40.8,4016.9,4016.0,3.2078]
[1760281583197,3.46499134,4017.8,4017.7,0.44788]
[1760281583502,3.46499134,4017.8,4017.7,3.21027472]
[1760281583503,0.02109134,4017.8,4017.7,3.21027472]
[1760281584002,0.02109134,4017.8,4017.2,3.2078]
[1760281584003,6.72788198,4017.8,4017.2,3.2078]
[1760281584197,6.72788198,4017.8,4015.8,3.5016]
[1760281584198,3.4439,4017.6,4016.7,3.2078]
[1760281584399,3.4439,4017.7,4017.3,3.2078]
[1760281584599,6.6517,4017.4,4016.1,3.2078]
[1760281584799,3.2078,4016.3,4015.4,3.2078]
[1760281585104,6.64281492,4016.2,4015.4,0.0026396]
[1760281585298,6.6517,4015.5,4015.4,0.0026396]
[1760281585491,3.2078,4016.1,4016.0,0.44806]
[1760281585694,3.2078,4016.7,4015.7,1.12025]
[1760281585899,3.4439,4016.6,4016.2,0.44804]
[1760281586101,3.4439,4016.6,4016.4,0.44801]
[1760281586102,2.66269471,4016.6,4016.4,0.44801]
[1760281586798,3.4439,4016.4,4015.4,3.2104396]
[1760281587100,3.4439,4015.8,4014.3,0.44825]
[1760281587302,3.4439,4015.8,4013.1,1.3752]
[1760281587303,3.4439,4015.8,4014.1,14.41476]
[1760281587493,3.26453628,4017.2,4015.5,0.44811]
[1760281587494,43.59312038,4015.7,4015.5,0.44811]
[1760281587695,46.80092038,4015.7,4014.7,1.12053]
[1760281587996,2.79903053,4015.8,4014.7,0.00287923]
[1760281588203,2.79312038,4015.6,4015.4,0.44812]
[1760281588396,2.79903053,4015.7,4015.5,0.44811]
[1760281588698,2.01675,4018.3,4016.2,0.44804]
[1760281588699,2.67848576,4016.3,4016.2,0.44804]
[1760281588901,3.22889134,4017.8,4016.3,11.20075]
[1760281589206,3.22889134,4017.8,4016.2,6.7094]
[1760281589207,0.98522675,4017.7,4017.6,3.94948]
[1760281589409,0.02109134,4017.8,4017.7,3.5016]
[1760281589410,1.34e-06,4017.8,4017.7,3.5016]
[1760281589598,3.2078,4018.7,4017.9,1.11963]
[1760281589799,0.22,4019.3,4019.1,0.44771]
[1760281590203,3.4439,4021.0,4020.9,0.44752]
[1760281590504,5.8035028,4020.8,4020.3,0.44758]
[1760281590699,3.2078,4020.4,4020.3,0.00307296]
[1760281590899,6.6517,4020.4,4020.3,0.00307296]
[1760281591199,2.79194584,4020.4,4020.3,0.00307296]
[1760281591400,6.6517,4020.4,4020.3,0.00307296]
[1760281591604,3.4439,4020.7,4020.6,0.44755]
[1760281591904,3.4439,4020.7,4020.3,0.45066296]
[1760281591905,2.83677377,4020.4,4020.3,0.45066296]
[1760281592100,6.6517,4020.6,4020.3,0.00307296]
[1760281592306,6.6517,4020.6,4019.4,0.44769]
[1760281592307,6.28067377,4020.4,4019.4,0.44769]
[1760281592497,3.2078,4019.5,4018.0,3.2078]
[1760281592701,3.2078,4018.9,4018.0,3.2078]
[1760281593208,3.2078,4018.3,4018.1,0.44783]
[1760281593407,3.2078,4018.3,4018.0,0.45077681]
[1760281593604,2.35379084,4018.2,4018.1,0.44782]
[1760281593801,3.2078,4018.4,4018.0,0.00293681]
[1760281594004,3.1849,4019.2,4018.0,0.00293681]
[1760281594005,3.2078,4018.9,4018.2,0.44782]
[1760281594199,3.1849,4018.3,4016.5,3.2078]
[1760281594503,3.2078,4017.2,4016.5,3.2078]
[1760281594904,51.99403,4018.8,4015.0,3.3198]
[1760281594905,3.2078,4016.7,4015.0,3.3198]
[1760281595108,9.06718758,4017.1,4015.0,3.3198]
[1760281595109,3.2078,4016.5,4015.0,3.3198]
[1760281595306,0.00183706,4016.7,4016.4,0.44802]
[1760281595603,3.2078,4017.5,4016.1,3.3198]
[1760281595813,3.2078,4019.8,4018.3,3.3198]
[1760281596101,3.2078,4019.3,4018.7,3.2078]
[1760281596301,3.2078,4019.6,4018.7,3.2078]
[1760281596498,3.2078,4019.8,4018.7,3.2078]
[1760281596704,0.00249605,4019.8,4019.7,0.44764]
[1760281596901,2.72410887,4019.7,4019.6,3.2078]
[1760281597103,2.72660492,4019.8,4019.7,0.44765]
[1760281597405,3.18739605,4019.8,4019.1,3.2078]
[1760281597705,3.1849,4019.4,4018.7,0.00261786]
[1760281598104,3.2078,4019.5,4018.7,0.00261786]
[1760281598105,2.7715371,4019.3,4018.7,0.00261786]
[1760281598406,2.7715371,4019.4,4018.7,0.00261786]
[1760281598603,2.7715371,4019.4,4019.3,0.4477]
[1760281598806,2.7715371,4019.4,4018.7,0.00261786]
[1760281598807,0.00249605,4019.8,4019.7,0.44765]
[1760281599002,3.18739605,4019.8,4019.7,0.44765]
[1760281599199,5.84820038,4019.8,4019.7,0.44765]
[1760281599404,3.2078,4020.1,4019.2,3.2078]
[1760281599702,3.2078,4019.4,4018.7,3.21041786]
[1760281600008,3.1849,4019.3,4019.0,0.44772]
[1760281600203,5.84570433,4019.3,4018.7,3.21041786]
[1760281600501,3.2078,4018.9,4018.7,0.00261786]
[1760281600704,3.1849,4018.8,4018.7,0.00261786]
[1760281600909,5.86214278,4018.8,4018.7,0.00261786]
[1760281601096,5.86214278,4018.8,4018.7,0.45037786]
[1760281601301,46.66214278,4018.8,4018.7,0.45037786]
[1760281601505,2.67724278,4018.8,4018.7,3.65817786]
[1760281601702,2.67724278,4018.8,4018.7,0.45037786]
[1760281601911,40.8,4018.8,4018.7,0.00261786]
[1760281602108,2.87735517,4019.1,4019.0,0.44773]
[1760281602402,2.87735517,4019.1,4018.7,3.21041786]
[1760281602403,6.06225517,4019.2,4019.1,0.44772]
[1760281602710,3.1849,4019.1,4017.1,3.2078]
[1760281603005,3.4768,4018.1,4018.0,0.44784]
[1760281603303,3.4768,4018.1,4017.6,3.2078]
[1760281603304,3.4768,4018.7,4018.6,0.44778]
[1760281603501,3.4768,4019.2,4019.1,0.44772]
[1760281603808,2.24545251,4018.7,4018.5,0.44779]
[1760281604004,3.4768,4019.0,4018.9,0.44773]
[1760281604202,3.2078,4019.2,4019.0,0.44773]
[1760281604408,0.00271526,4019.3,4019.2,0.44771]
[1760281604710,3.2078,4020.5,4020.3,0.44759]
[1760281604904,0.022,4022.8,4020.7,0.44754]
[1760281604905,3.4768,4021.0,4020.7,0.44754]
[1760281605107,3.4768,4021.0,4020.2,3.2078]
[1760281605108,3.4768,4021.0,4020.9,0.44752]
[1760281605403,1.18709313,4020.9,4020.8,7.17413]
[1760281605709,0.00284334,4020.9,4020.8,3.65533]
[1760281606208,0.00284334,4020.9,4020.1,0.44761]
[1760281606209,9.52723125,4020.9,4020.1,0.44761]
[1760281606407,9.52723125,4020.9,4019.5,3.2078]
[1760281606603,3.2078,4020.4,4019.5,3.2078]
[1760281606802,6.49588324,4020.8,4019.5,3.2078]
[1760281607006,5.90250398,4020.3,4019.5,3.2078]
[1760281607213,2.69470398,4020.7,4019.5,3.2078]
[1760281607508,2.69470398,4020.8,4020.6,0.44755]
[1760281607708,0.00284334,4020.9,4020.8,0.44753]
[1760281608008,2.68106317,4020.9,4020.8,0.44753]
[1760281608404,3.4768,4020.8,4019.8,3.2078]
[1760281608606,3.4768,4020.8,4019.2,3.5188]
[1760281608607,3.4768,4020.8,4020.5,3.2078]
[1760281608907,2.68106317,4020.9,4020.5,3.2078]
[1760281608908,2.67821983,4020.7,4020.5,3.2078]
[1760281609205,2.75894825,4020.8,4020.3,0.44758]
[1760281609409,3.4768,4020.7,4020.0,3.2078]
[1760281609608,0.00284334,4020.9,4020.5,3.2078]
[1760281609814,0.00284334,4020.9,4020.7,0.44754]
[1760281610218,0.00284334,4020.9,4020.8,3.5188]
[1760281610413,3.2078,4022.9,4022.2,0.44737]
[1760281610713,3.4768,4022.7,4021.7,3.2078]
[1760281610901,2.66768973,4022.1,4022.0,0.4474]
[1760281611108,3.4768,4023.8,4022.6,0.44733]
[1760281611309,0.522,4022.1,4021.8,0.44741]
[1760281611613,3.4768,4022.6,4021.8,0.44741]
[1760281611614,2.66768973,4022.2,4022.1,3.96619]
[1760281611808,0.00284735,4022.8,4022.1,3.96619]
[1760281611809,0.00284735,4022.8,4022.7,0.44732]
[1760281612012,0.00284735,4022.8,4022.7,7.17392]
[1760281612605,0.00284735,4022.8,4022.7,3.65512]
[1760281613111,3.4768,4024.6,4022.9,11.18233]
[1760281613308,3.4768,4025.0,4024.6,0.44709]
[1760281613612,3.4768,4025.0,4024.7,3.2078]
[1760281613808,6.35628172,4024.7,4024.6,3.2078]
[1760281614007,6.35628172,4024.7,4024.6,3.20980791]
[1760281614008,6.35930745,4024.7,4024.6,3.20980791]
[1760281614212,0.00302573,4024.7,4024.6,0.00200791]
[1760281614415,0.00302573,4024.7,4024.6,3.65689791]
[1760281614706,0.00302573,4024.7,4022.9,3.5188]
[1760281614707,6.35930745,4024.7,4022.9,3.5188]
[1760281614911,2.88250745,4024.7,4024.3,0.44712]
[1760281615212,0.00302573,4024.7,4024.6,0.4471]
[1760281615407,0.00302573,4024.7,4024.5,0.4471]
[1760281615608,0.00302573,4024.7,4024.6,3.5188]
[1760281615810,0.00302573,4024.7,4024.5,0.00272093]
[1760281616006,0.00302573,4024.7,4024.6,0.4471]
[1760281616310,0.00302573,4024.7,4024.5,0.00272093]
[1760281616311,0.00302573,4024.7,4024.5,3.9659]
[1760281616611,2.82321134,4024.7,4024.6,3.9707]
[1760281616815,0.00302573,4024.7,4024.6,3.9707]
[1760281617014,0.00302573,4024.7,4024.6,0.0048]
[1760281617311,0.00302573,4024.7,4024.6,0.00760571]
[1760281617513,0.00302573,4024.7,4024.6,3.52640571]
[1760281618115,0.22,4025.3,4025.2,0.44703]
[1760281618313,0.22,4025.3,4025.2,7.17363]
[1760281618615,1.3589,4024.9,4024.6,0.00280571]
[1760281618804,1.3589,4024.9,4021.9,6.7266]
[1760281618805,3.4768,4024.6,4021.9,6.7266]
[1760281619006,3.2078,4023.9,4022.5,3.5188]
[1760281619205,3.2078,4023.9,4021.2,12.56754]
[1760281619206,3.2078,4023.9,4022.9,3.2078]
[1760281619418,3.2078,4023.9,4021.9,0.5884573]
[1760281619419,3.2078,4023.0,4021.9,6.7266]
[1760281619715,3.2078,4022.0,4020.6,6.7266]
[1760281619914,3.16042588,4022.9,4020.0,3.2078]
[1760281619915,3.4768,4020.7,4020.0,3.2078]
[1760281620217,3.2078,4020.1,4018.8,6.7266]
[1760281620407,3.2078,4020.1,4018.3,1.3806]
[1760281620408,3.2078,4019.8,4018.1,3.5188]
[1760281620717,0.00216701,4019.8,4019.6,6.7266]
[1760281620918,0.00216701,4019.8,4019.7,0.44764]
[1760281621217,3.2078,4022.9,4021.0,3.5188]
[1760281621405,3.2078,4023.4,4022.5,0.44733]
[1760281621612,3.2078,4023.5,4022.4,3.2078]
[1760281621811,1.3589,4027.2,4023.0,3.5188]
[1760281621812,3.2078,4024.5,4023.0,3.5188]
[1760281622113,2.73045,4023.8,4023.6,0.44721]
[1760281622310,2.73045,4023.8,4023.5,3.5188]
[1760281622311,2.73045,4024.4,4024.3,0.44713]
[1760281622505,2.73045,4024.4,4023.5,3.5188]
[1760281622506,3.2898,4026.7,4024.1,4.52526]
[1760281622711,3.5098,4025.3,4024.6,3.2078]
[1760281622913,3.2898,4024.8,4023.6,3.2078]
[1760281623121,3.2898,4024.0,4022.8,3.2078]
[1760281623514,2.72380835,4023.9,4023.4,0.44722]
[1760281623816,3.29222978,4024.0,4022.8,3.2078]
[1760281623817,1.3063,4023.5,4022.8,3.2078]
[1760281624116,3.2898,4023.0,4020.8,3.2078]
[1760281624314,6.08695035,4023.4,4021.3,3.2078]
[1760281624315,3.2078,4022.1,4021.3,3.2078]
[1760281624513,2.86556183,4022.9,4022.8,0.4473]
[1760281624813,3.2078,4023.9,4022.7,3.2078]
[1760281625014,3.2078,4023.7,4022.7,3.21077433]
[1760281625316,3.2898,4023.0,4022.7,0.00297433]
[1760281625614,2.78748057,4023.4,4022.7,0.00297433]
[1760281625615,3.2898,4023.4,4022.7,0.00297433]
[1760281625817,1.3063,4023.5,4021.7,3.2078]
[1760281625818,3.2898,4022.8,4021.7,3.2078]
[1760281626117,2.78748057,4022.9,4021.7,3.2078]
[1760281626118,1.3063,4022.2,4021.7,2.88539884]
[1760281626417,3.2898,4020.8,4019.2,3.2078]
[1760281626612,3.2898,4020.0,4019.2,3.2078]
[1760281626809,1.3063,4019.6,4019.2,0.00289782]
[1760281627013,6.4976,4019.3,4019.2,0.00289782]
[1760281627212,6.4976,4019.3,4018.4,3.2078]
[1760281627410,3.2078,4018.5,4017.8,0.02488924]
[1760281627614,3.2898,4017.9,4017.8,0.02488924]
[1760281627817,5.82072239,4019.3,4017.8,3.23268924]
[1760281627818,2.70354748,4018.4,4017.8,3.23268924]
[1760281628011,3.2898,4019.2,4017.8,3.23268924]
[1760281628214,2.79425976,4018.7,4018.3,3.2078]
[1760281628515,3.2898,4019.4,4018.3,3.2078]
[1760281628707,3.2898,4019.4,4019.3,3.2078]
[1760281628908,3.2898,4019.4,4017.8,0.02726955]
[1760281628909,3.2898,4019.1,4017.8,0.02726955]
[1760281629114,1.3063,4018.3,4017.8,0.02726955]
[1760281629416,3.2898,4017.9,4017.8,0.02726955]
[1760281629620,6.4976,4017.9,4017.8,0.02726955]
[1760281629818,2.60226367,4017.9,4017.8,0.02726955]
[1760281630016,3.2898,4017.9,4017.8,0.02726955]
[1760281630216,40.8,4018.2,4017.8,0.02726955]
[1760281630217,4.5961,4018.3,4018.1,0.44779]
[1760281630512,3.2898,4019.5,4018.2,3.2078]
[1760281630713,3.2898,4019.5,4017.8,0.02726955]
[1760281630714,3.2898,4019.5,4019.3,0.44765]
[1760281631022,2.87124759,4019.5,4019.4,0.44764]
[1760281631315,11.7433,4022.2,4019.0,3.2078]
[1760281631316,3.2898,4019.9,4019.0,3.2078]
[1760281631513,6.16104759,4019.9,4019.0,3.2078]
[1760281631709,3.2078,4019.7,4019.0,3.2078]
[1760281631907,4.5961,4019.6,4019.0,3.2078]
[1760281632111,7.29123617,4019.6,4019.0,3.2078]
[1760281632307,3.2898,4019.1,4018.2,3.2078]
[1760281632519,3.15997363,4019.5,4017.8,0.02726955]
[1760281632520,3.2898,4018.5,4017.8,0.02726955]
[1760281632713,3.2898,4018.9,4018.1,3.2078]
[1760281632917,0.05963478,4018.4,4018.2,0.44778]
[1760281633110,2.69513617,4019.5,4018.1,3.2078]
[1760281633312,1.3063,4019.6,4019.5,0.44762]
[1760281633615,3.2898,4020.3,4019.9,0.44758]
[1760281633814,3.2078,4021.0,4019.8,3.2078]
[1760281633815,3.2898,4019.9,4019.8,3.2078]
[1760281634008,2.50298379,4019.9,4019.8,3.2078]
[1760281634208,3.2898,4021.3,4020.8,0.44747]
[1760281634423,3.2898,4022.1,4021.4,0.44741]
[1760281634610,3.2898,4022.1,4019.9,11.18942]
[1760281634611,6.11741777,4021.8,4021.5,3.2078]
[1760281634812,2.82761777,4022.1,4021.7,3.2078]
[1760281635012,3.2898,4021.7,4020.3,3.2078]
[1760281635217,3.2898,4021.7,4019.2,0.59296616]
[1760281635218,3.2898,4020.3,4019.2,0.59296616]
[1760281635521,3.2078,4019.7,4019.2,0.00233743]
[1760281635919,5.84583233,4020.3,4019.3,3.2078]
[1760281636118,3.2898,4020.0,4019.2,0.00233743]
[1760281636318,3.2078,4019.6,4019.2,0.00233743]
[1760281636522,3.2898,4019.5,4018.0,3.2078]
[1760281636821,3.2328719,4019.9,4019.3,3.2078]
[1760281637010,3.2078,4021.5,4019.8,3.2078]
[1760281637213,3.2898,4021.4,4020.5,3.2078]
[1760281637513,3.2898,4020.8,4020.5,0.00242675]
[1760281637819,2.65549879,4020.7,4018.3,3.2078]
[1760281638017,3.2078,4019.2,4018.3,3.2078]
[1760281638216,3.2078,4018.5,4017.6,3.2078]
[1760281638523,3.2898,4018.2,4016.6,3.2078]
[1760281638822,1.3063,4018.3,4016.6,3.2078]
[1760281638823,3.2898,4017.4,4016.6,3.2078]
[1760281639124,3.2898,4016.8,4014.0,3.80076616]
[1760281639317,3.2898,4015.6,4014.0,3.2078]
[1760281639515,3.2898,4015.6,4014.6,3.2078]
[1760281639721,3.2898,4015.4,4014.6,0.00189774]
[1760281639915,2.80000145,4015.5,4014.8,3.2078]
[1760281640118,0.00218776,4015.6,4015.4,3.65588]
[1760281640420,0.00218776,4015.6,4015.5,0.8147]
[1760281640616,4.5961,4017.0,4016.9,0.44791]
[1760281641023,3.2898,4017.8,4016.6,3.2078]
[1760281641321,1.3063,4019.6,4017.7,3.2078]
[1760281641515,1.3063,4019.6,4018.4,3.2078]
[1760281641516,40.8,4019.5,4018.4,3.2078]
[1760281641713,43.47266214,4019.5,4018.8,0.44769]
[1760281641927,3.28139922,4019.4,4017.9,3.2078]
[1760281642225,0.44785,4017.5,4016.1,3.2078]
[1760281642417,0.44796,4016.5,4015.6,3.2078]
[1760281642616,3.2078,4016.4,4015.6,3.2078]
[1760281642821,0.17835604,4016.4,4016.1,3.2078]
[1760281643024,2.85996538,4016.8,4016.1,3.2078]
[1760281643216,0.00252314,4016.8,4016.1,3.65781109]
[1760281643613,6.4976,4016.2,4016.1,0.00202109]
[1760281643820,0.44812,4015.1,4014.4,3.2078]
[1760281644027,1.3063,4015.7,4013.9,3.2078]
[1760281644028,3.2898,4014.7,4013.9,3.2078]
[1760281644324,2.60881495,4014.6,4013.9,3.2078]
[1760281644716,2.60881495,4014.6,4014.5,3.2078]
[1760281645027,2.6443686,4014.7,4014.5,3.2078]
[1760281645320,3.2898,4014.7,4014.2,0.44821]
[1760281645524,6.4976,4015.0,4014.0,3.2078]
[1760281645826,1.3063,4013.1,4010.6,3.4074]
[1760281646024,3.2078,4012.7,4012.5,0.4484]
[1760281646231,2.78637332,4013.0,4012.9,3.85576]
[1760281646419,3.2078,4013.9,4012.9,3.85576]
[1760281646420,3.2078,4013.9,4013.8,0.44826]
[1760281646622,0.00232008,4013.9,4013.8,0.00177344]
[1760281646817,0.00232008,4013.9,4012.9,6.6152]
[1760281646818,5.9964934,4013.9,4011.8,3.2078]
[1760281647021,3.2078,4012.4,4011.4,14.62062]
[1760281647222,3.2078,4013.0,4012.1,3.2078]
[1760281647424,3.2078,4013.0,4012.7,0.44837]
[1760281647629,0.00232008,4013.9,4013.4,0.4483]
[1760281647630,3.2078,4013.6,4013.4,0.4483]
[1760281647921,0.00232008,4013.9,4013.8,0.44826]
[1760281648126,0.00232008,4013.9,4013.8,7.06346]
[1760281648314,3.2078,4015.9,4015.8,0.44804]
[1760281648519,6.4976,4015.9,4014.8,3.2078]
[1760281648719,3.2898,4015.1,4013.4,0.00235115]
[1760281648920,1.3063,4015.2,4013.4,0.00235115]
[1760281648921,3.2078,4013.8,4013.4,0.00235115]
[1760281649124,0.44837,4012.9,4011.6,0.4485]
[1760281649324,3.65622,4012.4,4011.2,0.44855]
[1760281649525,3.2898,4011.8,4010.8,0.44858]
[1760281649827,3.2078,4011.9,4010.9,3.2078]
[1760281650021,3.2078,4012.4,4011.5,3.2078]
[1760281650216,3.21018256,4012.4,4012.1,0.44845]
[1760281650818,3.21018256,4012.4,4011.5,3.20970234]
[1760281650819,2.64455412,4012.3,4011.5,3.20970234]
[1760281651024,3.21018256,4012.4,4012.2,0.44844]
[1760281651327,2.82062089,4012.3,4011.5,0.00190234]
[1760281651527,3.2078,4011.9,4011.5,0.00190234]
[1760281651830,3.2078,4011.9,4011.7,0.44849]
[1760281652323,3.372,4011.7,4011.5,0.00190234]
[1760281652521,3.372,4011.6,4009.4,4.63217]
[1760281652721,3.2078,4010.6,4009.5,1.12185]
[1760281652927,0.44855,4011.2,4009.9,0.44869]